[Event "Italian-ch Semifinal 2022"]
[Site "Acqui Terme"]
[Date "2022.06.15"]
[Round "1.6"]
[White "Corvi, Marco"]
[Black "Cina`, Vittorio"]
[Result "1-0"]
[ECO "E18"]
[WhiteElo "2318"]
[BlackElo "2027"]
[Annotator "TA"]
[PlyCount "65"]
[EventDate "2022.06.15"]
[EventType "swiss"]
[EventCountry "ITA"]
[SourceTitle "playchess.com"]
[Source "ChessBase"]
[SourceQuality "1"]
[TimeControl "40/5400+30:1800+30"]

{[%evp 17,65,14,0,-23,-17,-43,-28,-31,-18,-81,-18,-14,-5,-20,-18,-16,-17,-10,-9,-40,-5,-8,-8,-8,-8,-6,-6,-6,-6,-6,-6,-7,-8,-19,7,-50,0,-95,-45,-66,-74,-82,-61,-70,386,374,478,458,583,570]} 1. c4 {[%emt 0:00:03]} e6 {[%emt 0:00:30]} 2. Nf3 {[%emt 0:00:45]} Nf6 {[%emt 0:00:26]} 3. Nc3 {[%emt 0:01:46]} b6 {[%emt 0:15:52]} 4. g3 {[%emt 0:01:48]} Bb7 {[%emt 0:00:07]} 5. Bg2 {[%emt 0:00:02]} Be7 {[%emt 0:00:59]} 6. O-O {[%emt 0:00:12]} O-O {[%emt 0:00:07]} 7. d4 {[%emt 0:00:21]} Ne4 {[%emt 0:00:15]} 8. Nxe4 {[%emt 0:05:06] 8.Bd2 gains popularity.} Bxe4 {[%emt 0:00:07]} 9. d5 {[%emt 0:03:33]} Bf6 {[%emt 0:06:59]} 10. a4 {[%emt 0:11:09] [#] E18: Queen's Indian: Old Main Line (4 g3 Bb7 5 Bg2 Be7 6 0-0 0-0 7 Nc3).} Na6 $146 {[%emt 0:04:45]} ({Predecessor:} 10... a5 11. Nd4 Bxg2 12. Kxg2 Na6 13. e4 Nc5 14. Be3 Nxe4 15. Qc2 Nc5 16. Rad1 Qe7 17. Nb5 d6 18. Bxc5 bxc5 {½-½ (45) Belaja,N (2121)-Rakitskaja,M (2176) St Petersburg 2001}) 11. Nd4 {[%emt 0:03:07]} Bxg2 {[%emt 0:05:10]} 12. Kxg2 {[%emt 0:00:03] Black has an edge.} Qe7 {[%emt 0:00:41]} 13. Nb5 {[%emt 0:11:56]} (13. Nc2 $11) 13... Qc5 {[%emt 0:23:05]} (13... exd5 $17 {Hoping for ...c6.} 14. cxd5 c6) 14. Qb3 $11 {[%emt 0:15:56]} c6 {[%emt 0:21:14]} 15. Be3 {[%emt 0:04:50]} Qb4 {[%emt 0:00:22]} 16. Qxb4 {[%emt 0:09:59]} Nxb4 {[%emt 0:00:06]} 17. dxc6 {[%emt 0:00:27]} dxc6 {[%emt 0:03:51]} 18. Nc3 {[%emt 0:03:44]} Rfd8 {[%emt 0:09:34]} 19. Rfc1 {[%emt 0:03:21]} c5 {[%emt 0:03:35]} 20. a5 {[%emt 0:04:39]} Nc6 {[%emt 0:00:06]} 21. axb6 {[%emt 0:03:17]} axb6 {[%emt 0:00:01]} 22. Bf4 {[%emt 0:03:08]} Bxc3 {[%emt 0:01:13]} 23. Rxa8 {[%emt 0:01:56]} Rxa8 {[%emt 0:00:04]} 24. Rxc3 {[%emt 0:00:04][%mdl 4096] Endgame KRB-KRN} e5 {[%emt 0:00:46]} 25. Be3 {[%emt 0:00:46]} Ra4 {[%emt 0:00:56]} 26. g4 {[%emt 0:03:21]} (26. Rd3 $11 Nd4 27. Bxd4 exd4 28. Rb3) 26... Kf8 {[%emt 0:00:51]} (26... Na5 $15) 27. f4 {[%emt 0:01:54]} (27. Rb3 $11) 27... Ke7 {[%emt 0:01:07]} (27... Na5 $17 28. b3 Rb4) 28. Kf3 {[%emt 0:02:29]} Rb4 {[%emt 0:00:17]} 29. b3 {[%emt 0:03:17]} exf4 {[%emt 0:00:35]} 30. Kxf4 {[%emt 0:00:25] [#] aiming for Bd2.} Ke6 $2 {[%emt 0:00:13][%mdl 8192]} (30... Na5 $15 {stays ahead.}) 31. Bd2 $18 {[%emt 0:00:16]} Kf6 {[%emt 0:00:49]} 32. Rd3 {[%emt 0:00:37]} g5+ {[%emt 0:00:52]} 33. Ke4 {[%emt 0:00:25] Weighted Error Value: White=0.20 (precise) /Black=0.52} 1-0

[Event "Italian-ch Semifinal 2022"]
[Site "Acqui Terme"]
[Date "2022.06.15"]
[Round "1.7"]
[White "Cassi, Elisa"]
[Black "Bettalli, Francesco"]
[Result "0-1"]
[ECO "C60"]
[WhiteElo "1999"]
[BlackElo "2304"]
[Annotator "TA"]
[PlyCount "64"]
[EventDate "2022.06.15"]
[EventType "swiss"]
[EventCountry "ITA"]
[SourceTitle "playchess.com"]
[Source "ChessBase"]
[SourceQuality "1"]
[TimeControl "40/5400+30:1800+30"]

{[%evp 14,64,22,33,44,15,18,9,27,0,0,0,0,-39,-32,-29,2,5,28,-14,-6,-120,-135,-301,-300,-277,-298,-298,-287,-293,-272,-415,-400,-390,-388,-382,-385,-496,-492,-565,-568,-552,-569,-564,-558,-570,-572,-564,-542,-913,-878,-1279,-1156]} 1. e4 {[%emt 0:00:03]} e5 {[%emt 0:02:07]} 2. Nf3 {[%emt 0:00:06]} Nc6 {[%emt 0:00:03]} 3. Bb5 {[%emt 0:00:06][%cal Bf1b5,Bb5a4,Ba4b3][%mdl 32]} Nge7 {[%emt 0:00:04]} 4. c3 {[%emt 0:00:55]} g6 {[%emt 0:00:12]} 5. O-O {[%emt 0:00:20]} Bg7 {[%emt 0:00:04]} 6. d4 {[%emt 0:00:41]} exd4 {[%emt 0:00:04]} 7. cxd4 {[%emt 0:00:07]} a6 $1 {[%emt 0:00:03][%mdl 4] now scores much better than the old 7...d5.} 8. Ba4 {[%emt 0:00:53]} b5 {[%emt 0:00:04] C60: Ruy Lopez: Unusual Black 3rd moves and 3...g6.} 9. Bb3 {[%emt 0:03:37]} O-O {[%emt 0:00:14]} 10. Nc3 {[%emt 0:02:55] Inhibits d5.} d6 {[%emt 0:00:40] The position is equal.} 11. h3 {[%emt 0:01:05] Inhibits Bg4.} Na5 {[%emt 0:00:05]} 12. Bc2 {[%emt 0:00:57]} c5 {[%emt 0:00:06]} 13. a4 {[%emt 0:11:25]} b4 {[%emt 0:02:05]} 14. Ne2 {[%emt 0:01:35]} h6 {[%emt 0:04:26] [#]} 15. Bf4 $146 {[%emt 0:05:01]} ({Predecessor:} 15. b3 Nec6 16. Rb1 Re8 17. Bf4 cxd4 18. Nfxd4 Ne5 19. Qd2 g5 20. Be3 Rb8 21. Ng3 {½-½ (51) Murzin,V (2478)-Ponkratov,P (2619) Cheboksary 2021}) 15... Qb6 {[%emt 0:05:08]} 16. dxc5 {[%emt 0:13:10]} dxc5 {[%emt 0:00:09][%cal Bd6c5,Bc5c4][%mdl 32] Strongly threatening ...b3.} 17. Qd6 {[%emt 0:01:18] [#]} (17. Qc1 $11) 17... Nec6 $1 $17 {[%emt 0:00:08]} 18. Rad1 $2 {[%emt 0:03:06] This costs White the game.} (18. Be3 $17 {was necessary.} Rd8 19. Qxc5 Qxc5 20. Bxc5) 18... Nc4 $19 {[%emt 0:01:37]} 19. Qc7 {[%emt 0:02:38]} Qxc7 {[%emt 0:00:01]} ({Not} 19... Bxb2 20. Qxb6 Nxb6 21. Be3 $11) 20. Bxc7 {[%emt 0:00:06]} Nxb2 {[%emt 0:00:26]} ({And not} 20... Bxb2 21. Rd5 Bb7 22. Rxc5 $15) 21. Rd5 {[%emt 0:05:43]} c4 {[%emt 0:00:39] ...b3 is the strong threat.} 22. Rc5 {[%emt 0:03:10]} (22. e5 $142) 22... Bb7 {[%emt 0:02:55]} 23. e5 {[%emt 0:01:33]} Rfc8 {[%emt 0:01:17]} 24. Bd6 {[%emt 0:03:54]} b3 {[%emt 0:00:12]} 25. Be4 {[%emt 0:00:48]} Nd8 {[%emt 0:00:09] Black is clearly winning.} 26. Nc3 {[%emt 0:05:19]} Rxc5 {[%emt 0:01:26]} 27. Bxc5 {[%emt 0:00:07]} Bxe4 {[%emt 0:00:05]} 28. Nxe4 {[%emt 0:00:16]} Nxa4 {[%emt 0:00:15]} 29. Nfd2 {[%emt 0:04:10]} Nxc5 {[%emt 0:01:10]} 30. Nxc5 {[%emt 0:00:06]} Rc8 {[%emt 0:00:04]} 31. Nxa6 {[%emt 0:01:00]} Bxe5 {[%emt 0:00:02]} 32. Rb1 {[%emt 0:01:25]} Bf4 {[%emt 0:00:35] Weighted Error Value: White=0.69/Black=0.03 (flawless)} 0-1

[Event "Italian-ch Semifinal 2022"]
[Site "Acqui Terme"]
[Date "2022.06.15"]
[Round "1.8"]
[White "Boraso, Alessio"]
[Black "Duraccio, Walter Mattia"]
[Result "1-0"]
[ECO "B14"]
[WhiteElo "2287"]
[BlackElo "1963"]
[Annotator "TA"]
[PlyCount "167"]
[EventDate "2022.06.15"]
[EventType "swiss"]
[EventCountry "ITA"]
[SourceTitle "playchess.com"]
[Source "ChessBase"]
[SourceQuality "1"]
[TimeControl "40/5400+30:1800+30"]

{[%evp 14,167,-16,0,18,14,6,12,65,54,62,60,65,58,64,70,64,65,54,63,62,48,62,60,68,71,70,71,98,84,98,88,93,69,104,100,100,36,98,66,63,18,16,22,34,27,75,81,103,110,827,129,129,129,129,129,129,129,129,129,130,118,283,281,271,256,439,202,202,0,202,0,202,169,526,526,526,526,533,526,526,526,533,526,533,533,533,533,533,533,533,533,533,526,533,533,526,533,526,526,29965,29941,29974,3888,1277,526,526,526,518,518,518,511,511,511,511,511,511,511,511,511,511,511,511,511,29972,29972,29972,29973,29973,29972,29975,29973,29977,29978,29978,510,29972,510,503,265,29977,29978,29978,29978,29977,29978,29984,0,29976,29973,29973,29972,29984,29985,29998,29999]} 1. e4 {[%emt 0:00:06]} c6 {[%emt 0:00:10]} 2. d4 {[%emt 0:00:32]} d5 {[%emt 0:00:07]} 3. exd5 {[%emt 0:00:22]} cxd5 {[%emt 0:00:10]} 4. c4 {[%emt 0:00:05]} Nf6 {[%emt 0:00:54]} 5. Nc3 {[%emt 0:00:10]} e6 {[%emt 0:02:40]} 6. Nf3 {[%emt 0:00:31]} Bb4 {[%emt 0:00:10] 6...Bb4 is better than 6...Be7.} 7. Bd2 {[%emt 0:03:14]} O-O {[%emt 0:01:39]} 8. a3 {[%emt 0:09:41]} Be7 {[%emt 0:04:27] B14: Caro-Kann: Panov-Botvinnik Attack with 5...e6 and 5...g6.} 9. cxd5 {[%emt 0:01:46]} Nxd5 {[%emt 0:04:52]} 10. Bd3 {[%emt 0:00:15]} b6 {[%emt 0:02:09]} (10... Nc6 $11) 11. Qc2 $14 {[%emt 0:08:05]} h6 {[%emt 0:10:09]} 12. Nxd5 {[%emt 0:02:21]} exd5 {[%emt 0:00:16]} 13. O-O {[%emt 0:07:09]} Bb7 {[%emt 0:02:27] [#]} 14. Ne5 $146 {[%emt 0:05:20]} ({Predecessor:} 14. Rac1 Nc6 15. Qa4 Qd6 16. Bb1 Rac8 17. Qc2 g6 18. Qd3 h5 19. b4 a6 20. Bh6 {½-½ (69) Ostenstad,B (2448)-Haug,J (2363) Norway 2018}) 14... Nd7 {[%emt 0:02:09][%cal Bb8d7,Bd7f6,Bf6e4][%mdl 32]} 15. Nc6 {[%emt 0:04:37] 0x0.0022fae8f672dp-1022s more active pieces. The black rooks are badly placed.} Bxc6 {[%emt 0:02:53]} 16. Qxc6 {[%emt 0:00:08]} Nf6 {[%emt 0:01:25][%cal Of6e4]} 17. Ba6 {[%emt 0:04:30] This bishop pair is nice.} Bd6 {[%emt 0:04:47]} 18. g3 {[%emt 0:36:23]} Re8 {[%emt 0:12:34]} 19. Rfe1 {[%emt 0:00:16]} Ne4 {[%emt 0:11:26]} 20. Be3 {[%emt 0:00:49]} ({Reject} 20. Qxd5 Nxd2 21. Rxe8+ Qxe8 $11) 20... Qf6 {[%emt 0:01:17]} 21. Qxd5 {[%emt 0:02:53]} Rad8 {[%emt 0:01:49][%cal Od6g3]} 22. Qh5 {[%emt 0:01:50]} Bf8 {[%emt 0:05:01]} 23. Be2 {[%emt 0:05:08]} Rxd4 {[%emt 0:07:50]} 24. Bxd4 {[%emt 0:01:55]} Qxd4 {[%emt 0:00:07] [#]} 25. Rf1 {[%emt 0:01:16]} (25. Qf3 $1 $16) 25... Bc5 {[%emt 0:00:35]} (25... Nd2 $14) 26. Rad1 {[%emt 0:01:21]} Qxb2 {[%emt 0:01:41] aiming for ...g6.} 27. Rd7 {[%emt 0:00:29]} g6 {[%emt 0:02:17] [#]} 28. Qd5 {[%emt 0:01:11]} Nd6 {[%emt 0:11:04]} 29. Bd3 {[%emt 0:01:06]} Re1 {[%emt 0:01:18]} 30. Qf3 $36 {[%emt 0:00:28][%mdl 2048] White is really pushing. The board is on fire.} Rxf1+ {[%emt 0:00:49]} 31. Bxf1 {[%emt 0:00:18]} Qxa3 $2 {[%emt 0:00:42][%mdl 8192]} (31... a5 $16) 32. Qxa3 $2 {[%emt 0:00:50]} (32. Qf6 $18 {is the precise move to win. Rd8+ would kill now.} Qa4 33. Rd8+ Ne8 34. Qe5) 32... Bxa3 {[%emt 0:00:03]} 33. Rxa7 {[%emt 0:00:09][%mdl 4096] Endgame KRB-KBN} Bc5 {[%emt 0:00:06]} 34. Bd3 {[%emt 0:00:23][%cal Bf1d3,Bd3c2,Bc2b3][%mdl 32]} Kg7 {[%emt 0:01:24]} 35. Kg2 {[%emt 0:00:26]} Kf6 {[%emt 0:01:18]} 36. f4 {[%emt 0:00:20]} Ke6 {[%emt 0:01:27]} 37. Bc2 {[%emt 0:00:21]} f5 $2 {[%emt 0:03:05]} (37... Kd5 $16 {was necessary.} 38. Bb3+ Kc6) 38. Bb3+ $18 {[%emt 0:00:15]} Kf6 {[%emt 0:00:04]} 39. Rh7 {[%emt 0:00:51]} h5 $2 {[%emt 0:01:02]} (39... Bd4 40. Bd5 (40. Rxh6 Kg7 $18) 40... h5) 40. Kf3 {[%emt 0:00:00]} Bg1 {[%emt 0:00:00]} 41. Kg2 $2 {[%emt 0:01:10]} (41. h3 $18) 41... Be3 $2 {[%emt 0:08:00]} (41... Bc5 $11 {and Black is okay.}) 42. Kf3 {[%emt 0:00:17]} Bg1 {[%emt 0:00:03]} 43. Ke2 {[%emt 0:00:30]} b5 $2 {[%emt 0:05:18]} (43... Bd4 {is tougher.} 44. Bd5 Bc5) 44. h4 {[%emt 0:11:05]} Bb6 {[%emt 0:02:39]} 45. Rd7 {[%emt 0:00:35] Against Bd8} Bc5 {[%emt 0:00:28]} 46. Bd5 {[%emt 0:00:40]} Ba3 {[%emt 0:01:40]} 47. Kd3 {[%emt 0:00:16]} Bc5 {[%emt 0:00:07]} 48. Kc2 {[%emt 0:00:11] And now Kb3 would win.} Ba3 {[%emt 0:00:59]} 49. Kb3 {[%emt 0:01:58]} Bc5 {[%emt 0:01:04]} 50. Ka2 {[%emt 0:07:41] Hoping for Kb3.} Bb4 {[%emt 0:01:59]} 51. Kb1 {[%emt 0:05:21] Strongly threatening Ka2.} Ba3 {[%emt 0:06:02]} 52. Kc2 {[%emt 0:00:12]} Bb4 {[%emt 0:00:05]} 53. Kb2 {[%emt 0:02:46] Ka2 is the strong threat.} Nc4+ {[%emt 0:00:40]} 54. Kb3 {[%emt 0:00:20][%csl Gd5][%cal Rd7f7]} Be7 {[%emt 0:00:05]} 55. Bxc4 {[%emt 0:02:10]} bxc4+ {[%emt 0:00:05]} 56. Kxc4 {[%emt 0:00:04] White wants to mate with Rc7. KR-KB} Ba3 {[%emt 0:02:45]} 57. Ra7 {[%emt 0:00:42]} Bd6 {[%emt 0:03:29]} 58. Kd5 {[%emt 0:00:06]} (58. Ra6 $142 Ke6 59. Kd4 Kd7 60. Kd5 Bb4 61. Rxg6 Bd2 62. Rg7+ Kd8 63. Ke6) 58... Bb4 {[%emt 0:00:49]} 59. Rb7 {[%emt 0:01:13]} (59. Ra1 $142 {Black must now prevent Rc1.} Bd2 60. Rb1) 59... Be1 {[%emt 0:00:20]} 60. Rb3 {[%emt 0:01:36]} Bf2 {[%emt 0:00:57]} 61. Kd6 {[%emt 0:00:28]} Bd4 {[%emt 0:01:29]} 62. Kd7 {[%emt 0:00:10]} Kf7 {[%emt 0:00:09]} 63. Rf3 {[%emt 0:01:13]} Ba7 {[%emt 0:00:47]} 64. Rf1 {[%emt 0:00:11]} Bd4 {[%emt 0:00:08]} 65. Kd6 {[%emt 0:02:23]} Kf6 {[%emt 0:00:15]} 66. Kd5 {[%emt 0:00:24]} Be3 {[%emt 0:00:11]} 67. Ra1 {[%emt 0:00:21] White threatens Ra2 and mate.} Bf2 {[%emt 0:00:24]} 68. Ra6+ {[%emt 0:00:17]} Kf7 {[%emt 0:00:09]} (68... Kg7 $18 69. Ra3 Kf6) 69. Ke5 {[%emt 0:01:08]} Kg7 {[%emt 0:01:49]} 70. Ra3 {[%emt 0:00:30]} Kf7 {[%emt 0:00:05]} 71. Rb3 {[%emt 0:00:06]} Kg7 {[%emt 0:01:35]} 72. Rd3 {[%emt 0:01:07]} Be1 {[%emt 0:00:59]} 73. Ke6 {[%emt 0:00:20]} Bf2 {[%emt 0:00:42]} 74. Ra3 {[%emt 0:00:18]} (74. Rd7+ $142 Kh6 75. Kf7 Kh7 76. Kf6+ Kh6 77. Rd8 Kh7 78. Kg5 Kg7 79. Rd7+ Kf8 80. Kxg6) 74... Bg1 {[%emt 0:00:20]} (74... Bd4 $18 75. Rd3 Ba1) 75. Rf3 {[%emt 0:00:14]} (75. Ke5 $142 Bf2 76. Rb3 Kf7 77. Rb7+ Kg8 78. Kf6 Bxg3 79. Kxg6 Bxf4 80. Kxh5) 75... Bd4 {[%emt 0:00:12]} 76. Rf1 {[%emt 0:00:47]} Be3 $2 {[%emt 0:00:38]} (76... Kg8 $18 77. Rc1 Kf8 78. Rc8+ Kg7 79. Rc7+ Kg8 80. Rc8+ Kg7 81. Rc7+ Kg8 82. Rc8+ Kg7) 77. Rd1 {[%emt 0:00:24]} Bf2 {[%emt 0:00:09]} 78. Rd3 {[%emt 0:00:31]} Be1 {[%emt 0:00:45]} 79. Rd7+ {[%emt 0:01:20]} Kh6 {[%emt 0:00:31]} 80. Rd3 {[%emt 0:00:52]} Kg7 $1 {[%emt 0:00:06]} 81. Rb3 {[%emt 0:00:03] White mates.} Bf2 {[%emt 0:00:30]} 82. Rb7+ {[%emt 0:00:02]} Kh6 {[%emt 0:00:07]} 83. Kf7 {[%emt 0:00:09]} Bxg3 {[%emt 0:01:26]} 84. Kg8 {[%emt 0:00:48] Weighted Error Value: White=0.36/Black=0.44} 1-0

[Event "Italian-ch Semifinal 2022"]
[Site "Acqui Terme"]
[Date "2022.06.15"]
[Round "1.9"]
[White "Floris, Federico"]
[Black "Palozza, Christian"]
[Result "1/2-1/2"]
[ECO "B15"]
[WhiteElo "1950"]
[BlackElo "2284"]
[Annotator "TA"]
[PlyCount "110"]
[EventDate "2022.06.15"]
[EventType "swiss"]
[EventCountry "ITA"]
[SourceTitle "playchess.com"]
[Source "ChessBase"]
[SourceQuality "1"]
[TimeControl "40/5400+30:1800+30"]

{[%evp 14,110,39,27,18,13,41,47,56,25,16,21,29,0,0,-22,-18,-27,-21,-23,-18,-40,-18,-14,-12,-61,-54,-100,-74,-65,-26,-27,-20,-24,-22,-24,-18,-10,0,-35,-10,-8,-7,-30,-18,-35,-22,-36,-8,-18,-8,-8,-8,-12,0,0,0,0,0,0,0,0,8,8,8,8,70,44,69,16,16,16,54,8,8,8,10,10,10,41,45,45,45,45,45,45,45,0,14,0,52,0,32,0,170,148,83,0,42]} 1. e4 {[%emt 0:00:05]} c6 {[%emt 0:00:06]} 2. d4 {[%emt 0:00:06]} d5 {[%emt 0:00:03]} 3. Nc3 {[%emt 0:00:10]} dxe4 {[%emt 0:00:05]} 4. Nxe4 {[%emt 0:00:07]} Nf6 {[%emt 0:00:03]} 5. Nxf6+ {[%emt 0:00:13]} exf6 {[%emt 0:00:06]} 6. c3 {[%emt 0:00:08]} Bd6 {[%emt 0:00:04]} 7. Bd3 {[%emt 0:00:09]} O-O {[%emt 0:00:06]} 8. Qc2 {[%emt 0:00:05] Active counter play!} Re8+ {[%emt 0:00:04] B15: Caro-Kann: 3 Nc3: 3...g6 and 3...dxe4 4 Nxe4 Nf6 5 Nxf6+ exf6.} 9. Ne2 {[%emt 0:00:07]} h5 {[%emt 0:00:04]} (9... f5 $5) 10. O-O {[%emt 0:00:39]} h4 {[%emt 0:00:33] White is slightly better.} 11. Bf4 {[%emt 0:05:57]} Na6 {[%emt 0:05:02]} (11... Rxe2 $2 12. Qxe2 Bxf4 13. Qe4 $18) 12. Rae1 {[%emt 0:11:17]} Nc7 {[%emt 0:02:41]} (12... Rxe2 $2 13. Qxe2 Bf5 14. Bxf5 $18) 13. Qd2 {[%emt 0:02:44]} Be6 {[%emt 0:10:29] [#]} 14. Bb1 $146 {[%emt 0:03:30]} ({Predecessor:} 14. b3 a5 15. Bxd6 Qxd6 16. Qf4 Qxf4 17. Nxf4 a4 18. Nxe6 Rxe6 19. Bc4 Nd5 20. Bxd5 cxd5 21. bxa4 Rxa4 {½-½ (70) Arjun,K (2445)-Buhmann,R (2581) Karlsruhe 2019}) 14... Bc4 {[%emt 0:08:23]} 15. Bxd6 {[%emt 0:00:32]} Qxd6 {[%emt 0:00:07]} 16. b3 {[%emt 0:00:06]} Bxe2 {[%emt 0:20:42]} 17. Rxe2 {[%emt 0:00:07]} Rxe2 {[%emt 0:00:04]} 18. Qxe2 {[%emt 0:00:04]} g6 {[%emt 0:00:05]} 19. Qg4 {[%emt 0:05:11]} (19. Qd2 $11) 19... Kg7 $15 {[%emt 0:01:25]} 20. Qxh4 {[%emt 0:18:29]} (20. c4 $15 {should be considered.}) 20... Nd5 {[%emt 0:01:14]} 21. c4 {[%emt 0:04:28]} Rh8 {[%emt 0:06:36]} 22. Qg3 {[%emt 0:01:38]} Nf4 {[%emt 0:00:08]} 23. Re1 {[%emt 0:04:44] Inhibits Ne2+.} Qxd4 {[%emt 0:04:03][%cal Of4e2] [#] ...Ne2+! is the strong threat.} 24. Qe3 {[%emt 0:09:22] Inhibits Ne2+.} Qd6 {[%emt 0:04:02][%cal Of4e2]} 25. g3 {[%emt 0:02:08]} Ne6 {[%emt 0:00:12]} 26. Be4 {[%emt 0:07:10]} Nd4 {[%emt 0:04:37]} 27. Rd1 {[%emt 0:01:48]} Rd8 {[%emt 0:00:02][%cal Od4e2]} 28. Kh1 {[%emt 0:02:44]} b6 {[%emt 0:04:57]} 29. b4 {[%emt 0:04:59]} c5 {[%emt 0:01:11]} 30. bxc5 {[%emt 0:00:29]} Qxc5 {[%emt 0:00:27] Threatens to win with ...Nf5.} 31. Bd5 {[%emt 0:00:07]} Ne6 {[%emt 0:04:49][%cal Bd4e6,Be6c5,Bc5d7,Bd7f6,Bf6g4][%mdl 32]} 32. Re1 {[%emt 0:00:26]} Qxe3 {[%emt 0:03:17]} 33. Rxe3 $11 {[%emt 0:00:07][%mdl 4096] Endgame KRB-KRN} Nc5 {[%emt 0:00:21]} 34. Re7 {[%emt 0:00:29][%csl LRa7,LRf7]} Rd7 {[%emt 0:00:02]} 35. Rxd7 {[%emt 0:01:31]} Nxd7 {[%emt 0:00:01] KB-KN} 36. Kg2 {[%emt 0:00:59]} f5 {[%emt 0:00:39]} 37. Kf3 {[%emt 0:01:19]} Nf6 {[%emt 0:01:52]} 38. h4 {[%emt 0:05:24]} Ng4 {[%emt 0:18:25]} 39. Ke2 {[%emt 0:00:56]} Kf6 {[%emt 0:00:25]} (39... Ne5 $11) 40. f3 $1 $14 {[%emt 0:00:00]} Ne5 {[%emt 0:00:00]} 41. Ke3 {[%emt 0:02:42]} ({Better is} 41. Kd2 $1 $14) 41... Nd7 $11 {[%emt 0:15:36]} 42. Kd4 {[%emt 0:10:07]} Ke7 {[%emt 0:00:16]} 43. g4 {[%emt 0:02:30]} (43. Kc3 $1 $14) 43... fxg4 {[%emt 0:00:59]} 44. fxg4 {[%emt 0:00:07]} Nf6 {[%emt 0:00:13]} 45. Bf3 {[%emt 0:00:06]} Kd6 {[%emt 0:00:21]} 46. h5 {[%emt 0:01:58]} gxh5 {[%emt 0:00:04]} 47. gxh5 {[%emt 0:00:05] Strongly threatening h6.} Ng8 {[%emt 0:00:14]} 48. Bd5 {[%emt 0:00:17]} Nh6 {[%emt 0:00:09]} 49. Ke4 {[%emt 0:04:45]} f6 {[%emt 0:00:28]} 50. Kf4 {[%emt 0:04:18]} Kc5 {[%emt 0:01:49]} 51. Ke4 {[%emt 0:00:08]} Kd6 {[%emt 0:02:46]} 52. Kf4 {[%emt 0:00:09]} Kc5 {[%emt 0:04:15]} 53. Ke4 {[%emt 0:00:07]} a5 $2 {[%emt 0:00:35] [#]} (53... Kd6 $11) 54. Be6 $1 $18 {[%emt 0:00:40]} Kd6 {[%emt 0:01:54]} 55. Bd5 {[%emt 0:00:08]} Kc5 {[%emt 0:02:58] Weighted Error Value: White=0.13 (very precise) /Black=0.16 (very precise)} 1/2-1/2

[Event "Italian-ch Semifinal 2022"]
[Site "Acqui Terme"]
[Date "2022.06.15"]
[Round "1.10"]
[White "Pasini, Nicolo"]
[Black "Mortola, Alberto"]
[Result "1-0"]
[ECO "A40"]
[WhiteElo "2227"]
[BlackElo "1944"]
[Annotator "TA"]
[PlyCount "54"]
[EventDate "2022.06.15"]
[EventType "swiss"]
[EventCountry "ITA"]
[SourceTitle "playchess.com"]
[Source "ChessBase"]
[SourceQuality "1"]
[TimeControl "40/5400+30:1800+30"]

{[%evp 9,54,79,79,62,54,49,45,34,36,39,70,72,53,27,59,23,31,12,71,89,97,71,122,89,227,225,216,114,124,125,161,179,169,160,133,116,106,109,138,141,267,149,407,400,391,397,434]} 1. d4 {[%emt 0:00:03]} b5 {[%emt 0:00:25]} 2. e4 {[%emt 0:00:08]} a6 {[%emt 0:00:47]} 3. Nd2 {[%emt 0:00:09]} Bb7 {[%emt 0:00:26]} 4. a4 {[%emt 0:01:11]} Nf6 {[%emt 0:08:38]} 5. Bd3 {[%emt 0:00:23]} e6 {[%emt 0:00:32]} 6. Qe2 {[%emt 0:00:03] A40: Unusual replies to 1 d4.} c5 {[%emt 0:07:37]} 7. dxc5 {[%emt 0:00:53]} Nc6 {[%emt 0:10:42]} 8. Ngf3 {[%emt 0:03:29] Against Nd4. White is slightly better.} Bxc5 {[%emt 0:12:53] [#]} 9. axb5 $146 {[%emt 0:05:38]} ({Predecessor:} 9. e5 Ng4 10. Ne4 Qb6 11. Bf4 Nb4 12. Nxc5 Qxc5 13. O-O Nxd3 14. Qxd3 Rc8 15. axb5 axb5 {0-1 (46) Nadj Hedjesi,B (2363)-Petakov,U (2246) Sombor 2008}) 9... axb5 {[%emt 0:00:18]} 10. Rxa8 {[%emt 0:00:35]} Qxa8 {[%emt 0:00:29]} 11. e5 {[%emt 0:11:54]} Nd5 {[%emt 0:02:19]} 12. Ne4 {[%emt 0:00:35]} Be7 {[%emt 0:08:53]} 13. c3 {[%emt 0:15:05] Prevents Ncb4.} b4 {[%emt 0:04:17]} (13... Qb8 $11) 14. c4 $16 {[%emt 0:00:02]} Nc7 {[%emt 0:07:39]} 15. O-O {[%emt 0:02:39]} O-O {[%emt 0:03:40]} (15... Na6 $142) 16. Nf6+ {[%emt 0:09:33]} gxf6 {[%emt 0:08:42]} (16... Bxf6 $16 {was worth a try.} 17. exf6 (17. Qe4 g6 $11) 17... g6) 17. exf6 $18 {[%emt 0:01:42] White threatens Qe4 and mate.} Nd4 {[%emt 0:00:12] [#]} (17... Bxf6 18. Qe4 Rb8 19. Bh6 Bg7 20. Qxh7+ Kf8 21. Qxg7+ Ke7 22. Bg5+ Kd6 23. c5+ Kd5 24. Qxf7) 18. Nxd4 {[%emt 0:08:46]} (18. Qe5 $1 $18 {[%cal Re5g5] Qg5+ would kill now.} Bxf6 19. Qxf6 Nxf3+ 20. gxf3) 18... Bxf6 $16 {[%emt 0:00:14]} 19. Bh6 {[%emt 0:07:00] Hoping for Qg4+.} ({Don't take} 19. Qh5 $6 Be4 20. Qg4+ Bg6 $14) 19... Rc8 {[%emt 0:06:17]} 20. Qg4+ {[%emt 0:11:28]} Kh8 {[%emt 0:00:10] Threatens to win with ...Rg8.} 21. Qf4 {[%emt 0:00:20]} Ne8 {[%emt 0:05:27]} 22. Bg5 {[%emt 0:03:51]} Bxg5 {[%emt 0:00:29]} 23. Qxg5 {[%emt 0:00:43]} Ng7 {[%emt 0:02:02]} 24. Nb5 $40 {[%emt 0:03:28][%mdl 128] aiming for Re1. White attacks with force. White is much more active.} Qa6 {[%emt 0:07:08]} (24... Bc6 $16 {is a better defense.}) 25. c5 {[%emt 0:03:35]} (25. Re1 $18) 25... Qc6 $2 {[%emt 0:01:32][%mdl 8192] [#]} (25... Rf8 $16) 26. Nd6 $18 {[%emt 0:01:08]} f6 {[%emt 0:01:06]} 27. Qg3 {[%emt 0:00:59]} Qxc5 {[%emt 0:01:06] Weighted Error Value: White=0.23 (precise) /Black=0.33} 1-0